{"text_format":"1","workbook":"xlsx","n_sheets":23,"sheets":["Accueil","donnees","suivi_entrainements","ALBA","CAMUGLI","FATACCIOLI","FERDI","GAMBOTI","GENTILI","GONGORA","LECA","LENCI","LEONI","MARCHETTI","MICHELI","MODOLONI","NESA","ORTOLANO","PEREZ","SCAGLIA","SCIARETTI","VAN KALCK","VECCHIOLI"],"not_rendered":{"charts":0,"images":5,"macros":1,"external_links":0,"defined_names":2,"comments":0,"pivot_tables":0},"unopened":[],"bounds":{"document_bytes":16777216,"sheet_cells":100000,"rows_first":2000,"rows_last":500,"rows_between":2000,"halvings":0,"cell_chars":16384,"cell_head_chars":4096},"cells_cut":0,"cells_raw":0,"read":"whole","date_system":"1900"}

{"sheet":"Accueil","index":0,"n_rows":0,"n_cols":0,"rows_kept":0,"cut":false,"hidden":false,"merged":[]}

{"sheet":"donnees","index":1,"n_rows":21,"n_cols":16,"rows_kept":21,"cut":false,"hidden":false,"merged":[]}
[null,null,null,null,null,null,null,null,null,null,null,null,null,null,null,"Responsable"]
[null,"liste personnels",null,"liste activités",null,"type de rando",null,null,null,"Veuillez indiquer l'année :",2020,null,"Date de l'exercice",null,null,"CT et SMO3"]
[null,"Ltn GONGORA",null,"TREILLAGE",null,"SIMPLE",null,null,null,null,null,null,"Début","Fin",null,"ALBERT "]
[null,"Adj/c GENTILI",null,"ESCALADE",null,"DOUBLE",null,null,null,null,null,null,"2020-01-01","2020-12-31",null,"ROGER"]
[null,"Adj/c ALBA",null,"CANYON",null,"TSL",null,null,null,null,null,null,null,null,null,"CHRISTIAN"]
[null,"Sgt FATACCIOLI",null,"NEIGE",null,"TRIANGLE",null,null,null,null,null,null,null,null,null,"JEAN"]
[null,"Sgt PEREZ",null,"CRODES (TECH)",null,"NUIT",null,null,null,null,null,null,null,null,null,"CLAUDE"]
[null,"Sgt VAN KALCK",null,"MARCHE D'APPROCHE",null,null,null,null,null,null,null,null,null,null,null,"SYLVAIN"]
[null,"Adj MARCHETTI",null,"GRIMP / ANIMALIER"]
[null,"Adj/c MONDOLONI",null,"SEV"]
[null,"Sgt LEONI"]
[null,"Adj/c ORTOLANO"]
[null,"Adj/c SCIARETTI",null,"CT et SMO3"]
[null,"Adj NESA",null,1]
[null,"Adj SCAGLIA",null,2]
[null,"Adj MICHELI",null,3]
[null,"Sgt VECCHIOLI",null,4]
[null,"Adj/c GAMBOTTI",null,5]
[null,"Adj/c LENCI",null,6]
[null,"Adj CAMUGLI"]
[null,"Sgt LECA"]

{"sheet":"suivi_entrainements","index":2,"n_rows":9,"n_cols":39,"rows_kept":9,"cut":false,"hidden":false,"merged":[[0,4,2,11],[6,27,6,28],[6,29,6,34],[6,7,6,26],[4,0,4,23]]}
[null,null,null,null,"Tableau de suivi des entrainements 2020"]
[]
[]
[]
[]
[]
["Date","N° CRSS","heure départ","heure retour","durée","Lieu","commune","Participants",null,null,null,null,null,null,null,null,null,null,null,null,null,null,null,null,null,null,null,"Activité",null,"Treuillage",null,null,null,null,null,"précisions (matériel utilisé, nouveautés techniques, etc …)","Participants hors équipes SMO (grade, nom, prénom , partenaires)","responsable (CT ou SMO 3)","observations"]
[" 08/11/2020",4444,"02:00:00","06:00:00","04:00:00",null,null,"ALBA","CAMUGLI","FATACCIOLI","FERDI","GAMBOTI","GENTILI","GONGORA","LECA","LENCI","LEONI","MARCHETTI","MICHELI","MODOLONI","NESA","ORTOLANO","PEREZ","SCAGLIA","SCIARETTI","VAN KALCK","VECCHIOLI","TREILLAGE","TREILLAGE","SIMPLE","SIMPLE","DOUBLE","DOUBLE","TSL","TSL","Matériel","Grade","ALBERT ","ras"]
[" 08/11/2020",55,"02:00:00","03:00:00","01:00:00",null,null,"FERDI",null,null,null,null,null,null,null,null,null,null,null,null,null,null,null,null,null,null,null,"TREILLAGE","TREILLAGE","SIMPLE","SIMPLE","DOUBLE","DOUBLE","TSL","TSL","mat","Ltn GONGORA","ALBERT ","ras"]

{"sheet":"ALBA","index":3,"n_rows":16,"n_cols":24,"rows_kept":16,"cut":false,"hidden":false,"merged":[[6,20,6,23],[1,1,3,3],[1,4,3,4],[1,5,3,13],[6,7,6,8],[6,9,6,14],[12,20,14,21],[15,20,19,23],[7,20,7,21],[7,22,7,23],[8,20,9,20],[8,21,9,21],[10,20,11,20],[10,21,11,21]]}
[]
[null,"suivi individuel",null,null,2020,{"$f":"RIGHT(CELL(\"nomfichier\",$F$2),LEN(CELL(\"nomfichier\",$F$2))-FIND(\"]\",CELL(\"nomfichier\",$F$2)))","v":"ALBA"}]
[]
[]
[]
[]
["Date","N° CRSS","heure départ","heure retour","durée","Lieu","commune","activité",null,"treuillage",null,null,null,null,null,"précisions (matériel utilisé, nouveautés techniques, etc …)","Participants hors équipes SMO (grade, nom, prénom , partenaires)","responsable (CT ou SMO 3)","observations",null,"suivi "]
[null,null,null,null,null,null,null,null,null,null,null,null,null,null,null,null,null,null,null,null,"heures",null,"treuillages"]
[null,null,null,null,null,null,null,null,null,null,null,null,null,null,null,null,null,null,null,null,"effectuées","cible ops","type","nombre"]
[null,null,null,null,null,null,null,null,null,null,null,null,null,null,null,null,null,null,null,null,null,null,"nuit",{"$f":"COUNTIF(N8:O30,\"nuit\")","v":0}]
[null,null,null,null,null,null,null,null,null,null,null,null,null,null,null,null,null,null,null,null,{"$f":"SUM(E8:E35)","v":"00:00:00"},null,"TSL",{"$f":"COUNTIF(N8:O30,\"TSL\")","v":0}]
[null,null,null,null,null,null,null,null,null,null,null,null,null,null,null,null,null,null,null,null,null,null,"simple",{"$f":"COUNTIF(N8:O30,\"simple\")","v":0}]
[null,null,null,null,null,null,null,null,null,null,null,null,null,null,null,null,null,null,null,null,null,null,"triangle",{"$f":"COUNTIF(N8:O30,\"triangle\")","v":0}]
[null,null,null,null,null,null,null,null,null,null,null,null,null,null,null,null,null,null,null,null,null,null,"double",{"$f":"COUNTIF(N8:O30,\"double\")","v":0}]
[]
[null,null,null,null,null,null,null,null,null,null,null,null,null,null,null,null,null,null,null,null,"Visa CT fin d'année"]

{"sheet":"CAMUGLI","index":4,"n_rows":16,"n_cols":24,"rows_kept":16,"cut":false,"hidden":false,"merged":[[1,1,3,3],[1,4,3,4],[1,5,3,13],[15,20,19,23],[8,20,9,20],[8,21,9,21],[10,20,11,20],[10,21,11,21],[12,20,14,21],[6,7,6,8],[6,20,6,23],[7,20,7,21],[7,22,7,23],[6,9,6,14]]}
[]
[null,"suivi individuel",null,null,2020,{"$f":"RIGHT(CELL(\"nomfichier\",$F$2),LEN(CELL(\"nomfichier\",$F$2))-FIND(\"]\",CELL(\"nomfichier\",$F$2)))","v":"CAMUGLI"}]
[]
[]
[]
[]
["Date","N° CRSS","heure départ","heure retour","durée","Lieu","commune","activité",null,"treuillage",null,null,null,null,null,"précisions (matériel utilisé, nouveautés techniques, etc …)","Participants hors équipes SMO (grade, nom, prénom , partenaires)","responsable (CT ou SMO 3)","observations",null,"suivi "]
[" 08/11/2020",4444,"02:00:00","06:00:00","04:00:00",null,null,"TREILLAGE","TREILLAGE","SIMPLE","SIMPLE","DOUBLE","DOUBLE","TSL","TSL","Matériel","Grade","ALBERT ","ras",null,"heures",null,"treuillages"]
[null,null,null,null,null,null,null,null,null,null,null,null,null,null,null,null,null,null,null,null,"effectuées","cible ops","type","nombre"]
[null,null,null,null,null,null,null,null,null,null,null,null,null,null,null,null,null,null,null,null,null,null,"nuit",{"$f":"COUNTIF(N8:O106,\"nuit\")","v":0}]
[null,null,null,null,null,null,null,null,null,null,null,null,null,null,null,null,null,null,null,null,{"$f":"SUM(E8:E35)","v":"04:00:00"},null,"TSL",{"$f":"COUNTIF(N8:O106,\"TSL\")","v":2}]
[null,null,null,null,null,null,null,null,null,null,null,null,null,null,null,null,null,null,null,null,null,null,"simple",{"$f":"COUNTIF(N8:O106,\"simple\")","v":0}]
[null,null,null,null,null,null,null,null,null,null,null,null,null,null,null,null,null,null,null,null,null,null,"triangle",{"$f":"COUNTIF(N8:O106,\"triangle\")","v":0}]
[null,null,null,null,null,null,null,null,null,null,null,null,null,null,null,null,null,null,null,null,null,null,"double",{"$f":"COUNTIF(N8:O106,\"double\")","v":0}]
[]
[null,null,null,null,null,null,null,null,null,null,null,null,null,null,null,null,null,null,null,null,"Visa CT fin d'année"]

{"sheet":"FATACCIOLI","index":5,"n_rows":16,"n_cols":24,"rows_kept":16,"cut":false,"hidden":false,"merged":[[1,1,3,3],[1,4,3,4],[1,5,3,13],[8,20,9,20],[15,20,19,23],[8,21,9,21],[10,20,11,20],[10,21,11,21],[12,20,14,21],[6,7,6,8],[6,20,6,23],[7,20,7,21],[7,22,7,23],[6,9,6,14]]}
[]
[null,"suivi individuel",null,null,2020,{"$f":"RIGHT(CELL(\"nomfichier\",$F$2),LEN(CELL(\"nomfichier\",$F$2))-FIND(\"]\",CELL(\"nomfichier\",$F$2)))","v":"FATACCIOLI"}]
[]
[]
[]
[]
["Date","N° CRSS","heure départ","heure retour","durée","Lieu","commune","activité",null,"treuillage",null,null,null,null,null,"précisions (matériel utilisé, nouveautés techniques, etc …)","Participants hors équipes SMO (grade, nom, prénom , partenaires)","responsable (CT ou SMO 3)","observations",null,"suivi "]
[" 08/11/2020",4444,8.3333333333333329E-2,0.25,0.16666666666666666,null,null,"TREILLAGE","TREILLAGE","SIMPLE","SIMPLE","DOUBLE","DOUBLE","TSL","TSL","Matériel","Grade","ALBERT ","ras",null,"heures",null,"treuillages"]
[null,null,null,null,null,null,null,null,null,null,null,null,null,null,null,null,null,null,null,null,"effectuées","cible ops","type","nombre"]
[null,null,null,null,null,null,null,null,null,null,null,null,null,null,null,null,null,null,null,null,null,null,"nuit",{"$f":"COUNTIF(N8:O30,\"nuit\")","v":0}]
[null,null,null,null,null,null,null,null,null,null,null,null,null,null,null,null,null,null,null,null,{"$f":"SUM(E8:E35)","v":"04:00:00"},null,"TSL",{"$f":"COUNTIF(N8:O30,\"TSL\")","v":2}]
[null,null,null,null,null,null,null,null,null,null,null,null,null,null,null,null,null,null,null,null,null,null,"simple",{"$f":"COUNTIF(N8:O30,\"simple\")","v":0}]
[null,null,null,null,null,null,null,null,null,null,null,null,null,null,null,null,null,null,null,null,null,null,"triangle",{"$f":"COUNTIF(N8:O30,\"triangle\")","v":0}]
[null,null,null,null,null,null,null,null,null,null,null,null,null,null,null,null,null,null,null,null,null,null,"double",{"$f":"COUNTIF(N8:O30,\"double\")","v":0}]
[]
[null,null,null,null,null,null,null,null,null,null,null,null,null,null,null,null,null,null,null,null,"Visa CT fin d'année"]

{"sheet":"FERDI","index":6,"n_rows":16,"n_cols":24,"rows_kept":16,"cut":false,"hidden":false,"merged":[[1,1,3,3],[1,4,3,4],[1,5,3,13],[6,7,6,8],[6,20,6,23],[12,20,14,21],[15,20,19,23],[6,9,6,14],[7,20,7,21],[7,22,7,23],[8,20,9,20],[8,21,9,21],[10,20,11,20],[10,21,11,21]]}
[]
[null,"suivi individuel",null,null,2020,{"$f":"RIGHT(CELL(\"nomfichier\",$F$2),LEN(CELL(\"nomfichier\",$F$2))-FIND(\"]\",CELL(\"nomfichier\",$F$2)))","v":"FERDI"}]
[]
[]
[]
[1,2]
["Date","N° CRSS","heure départ","heure retour","durée","Lieu","commune","activité",null,"treuillage",null,null,null,null,null,"précisions (matériel utilisé, nouveautés techniques, etc …)","Participants hors équipes SMO (grade, nom, prénom , partenaires)","responsable (CT ou SMO 3)","observations",null,"suivi "]
[null,null,null,null,null,null,null,null,null,null,null,null,null,null,null,null,null,null,null,null,null,null,"treuillages"]
[null,null,null,null,null,null,null,null,null,null,null,null,null,null,null,null,null,null,null,null,null,"cible ops","type","nombre"]
[null,null,null,null,null,null,null,null,null,null,null,null,null,null,null,null,null,null,null,null,null,null,"nuit",{"$f":"COUNTIF(N8:O30,\"nuit\")","v":0}]
[null,null,null,null,null,null,null,null,null,null,null,null,null,null,null,null,null,null,null,null,{"$f":"SUM(E8:E35)","v":"00:00:00"},null,"TSL",{"$f":"COUNTIF(N8:O30,\"TSL\")","v":0}]
[null,null,null,null,null,null,null,null,null,null,null,null,null,null,null,null,null,null,null,null,null,null,"simple",{"$f":"COUNTIF(J8:O30,\"simple\")","v":0}]
[null,null,null,null,null,null,null,null,null,null,null,null,null,null,null,null,null,null,null,null,null,null,"triangle",{"$f":"COUNTIF(N8:O30,\"triangle\")","v":0}]
[null,null,null,null,null,null,null,null,null,null,null,null,null,null,null,null,null,null,null,null,null,null,"double",{"$f":"COUNTIF(N8:O30,\"double\")","v":0}]
[]
[null,null,null,null,null,null,null,null,null,null,null,null,null,null,null,null,null,null,null,null,"Visa CT fin d'année"]

{"sheet":"GAMBOTI","index":7,"n_rows":16,"n_cols":24,"rows_kept":16,"cut":false,"hidden":false,"merged":[[1,1,3,3],[1,4,3,4],[1,5,3,13],[8,20,9,20],[15,20,19,23],[8,21,9,21],[10,20,11,20],[10,21,11,21],[12,20,14,21],[6,7,6,8],[6,20,6,23],[7,20,7,21],[7,22,7,23],[6,9,6,14]]}
[]
[null,"suivi individuel",null,null,2020,{"$f":"RIGHT(CELL(\"nomfichier\",$F$2),LEN(CELL(\"nomfichier\",$F$2))-FIND(\"]\",CELL(\"nomfichier\",$F$2)))","v":"GAMBOTI"}]
[]
[]
[]
[]
["Date","N° CRSS","heure départ","heure retour","durée","Lieu","commune","activité",null,"treuillage",null,null,null,null,null,"précisions (matériel utilisé, nouveautés techniques, etc …)","Participants hors équipes SMO (grade, nom, prénom , partenaires)","responsable (CT ou SMO 3)","observations",null,"suivi "]
[" 08/11/2020",4444,"02:00:00","06:00:00","04:00:00",null,null,"TREILLAGE","TREILLAGE","SIMPLE","SIMPLE","DOUBLE","DOUBLE","TSL","TSL","Matériel","Grade","ALBERT ","ras",null,"heures",null,"treuillages"]
[null,null,null,null,null,null,null,null,null,null,null,null,null,null,null,null,null,null,null,null,"effectuées","cible ops","type","nombre"]
[null,null,null,null,null,null,null,null,null,null,null,null,null,null,null,null,null,null,null,null,null,null,"nuit",{"$f":"COUNTIF(N8:O30,\"nuit\")","v":0}]
[null,null,null,null,null,null,null,null,null,null,null,null,null,null,null,null,null,null,null,null,{"$f":"SUM(E8:E35)","v":"04:00:00"},null,"TSL",{"$f":"COUNTIF(N8:O30,\"TSL\")","v":2}]
[null,null,null,null,null,null,null,null,null,null,null,null,null,null,null,null,null,null,null,null,null,null,"simple",{"$f":"COUNTIF(N8:O30,\"simple\")","v":0}]
[null,null,null,null,null,null,null,null,null,null,null,null,null,null,null,null,null,null,null,null,null,null,"triangle",{"$f":"COUNTIF(N8:O30,\"triangle\")","v":0}]
[null,null,null,null,null,null,null,null,null,null,null,null,null,null,null,null,null,null,null,null,null,null,"double",{"$f":"COUNTIF(N8:O30,\"double\")","v":0}]
[]
[null,null,null,null,null,null,null,null,null,null,null,null,null,null,null,null,null,null,null,null,"Visa CT fin d'année"]

{"sheet":"GENTILI","index":8,"n_rows":16,"n_cols":24,"rows_kept":16,"cut":false,"hidden":false,"merged":[[1,1,3,3],[1,4,3,4],[1,5,3,13],[8,20,9,20],[15,20,19,23],[8,21,9,21],[10,20,11,20],[10,21,11,21],[12,20,14,21],[6,7,6,8],[6,20,6,23],[7,20,7,21],[7,22,7,23],[6,9,6,14]]}
[]
[null,"suivi individuel",null,null,2020,{"$f":"RIGHT(CELL(\"nomfichier\",$F$2),LEN(CELL(\"nomfichier\",$F$2))-FIND(\"]\",CELL(\"nomfichier\",$F$2)))","v":"GENTILI"}]
[]
[]
[]
[]
["Date","N° CRSS","heure départ","heure retour","durée","Lieu","commune","activité",null,"treuillage",null,null,null,null,null,"précisions (matériel utilisé, nouveautés techniques, etc …)","Participants hors équipes SMO (grade, nom, prénom , partenaires)","responsable (CT ou SMO 3)","observations",null,"suivi "]
[null,null,null,null,null,null,null,null,null,null,null,null,null,null,null,null,null,null,null,null,"heures",null,"treuillages"]
[null,null,null,null,null,null,null,null,null,null,null,null,null,null,null,null,null,null,null,null,"effectuées","cible ops","type","nombre"]
[null,null,null,null,null,null,null,null,null,null,null,null,null,null,null,null,null,null,null,null,null,null,"nuit",{"$f":"COUNTIF(N8:O30,\"nuit\")","v":0}]
[null,null,null,null,null,null,null,null,null,null,null,null,null,null,null,null,null,null,null,null,{"$f":"SUM(E8:E35)","v":"00:00:00"},null,"TSL",{"$f":"COUNTIF(N8:O30,\"TSL\")","v":0}]
[null,null,null,null,null,null,null,null,null,null,null,null,null,null,null,null,null,null,null,null,null,null,"simple",{"$f":"COUNTIF(N8:O30,\"simple\")","v":0}]
[null,null,null,null,null,null,null,null,null,null,null,null,null,null,null,null,null,null,null,null,null,null,"triangle",{"$f":"COUNTIF(N8:O30,\"triangle\")","v":0}]
[null,null,null,null,null,null,null,null,null,null,null,null,null,null,null,null,null,null,null,null,null,null,"double",{"$f":"COUNTIF(N8:O30,\"double\")","v":0}]
[]
[null,null,null,null,null,null,null,null,null,null,null,null,null,null,null,null,null,null,null,null,"Visa CT fin d'année"]

{"sheet":"GONGORA","index":9,"n_rows":16,"n_cols":24,"rows_kept":16,"cut":false,"hidden":false,"merged":[[1,1,3,3],[1,4,3,4],[1,5,3,13],[8,20,9,20],[15,20,19,23],[8,21,9,21],[10,20,11,20],[10,21,11,21],[12,20,14,21],[6,7,6,8],[6,20,6,23],[7,20,7,21],[7,22,7,23],[6,9,6,14]]}
[]
[null,"suivi individuel",null,null,2020,{"$f":"RIGHT(CELL(\"nomfichier\",$F$2),LEN(CELL(\"nomfichier\",$F$2))-FIND(\"]\",CELL(\"nomfichier\",$F$2)))","v":"GONGORA"}]
[]
[]
[]
[]
["Date","N° CRSS","heure départ","heure retour","durée","Lieu","commune","activité",null,"treuillage",null,null,null,null,null,"précisions (matériel utilisé, nouveautés techniques, etc …)","Participants hors équipes SMO (grade, nom, prénom , partenaires)","responsable (CT ou SMO 3)","observations",null,"suivi "]
[null,null,null,null,null,null,null,null,null,null,null,null,null,null,null,null,null,null,null,null,"heures",null,"treuillages"]
[null,null,null,null,null,null,null,null,null,null,null,null,null,null,null,null,null,null,null,null,"effectuées","cible ops","type","nombre"]
[null,null,null,null,null,null,null,null,null,null,null,null,null,null,null,null,null,null,null,null,null,null,"nuit",{"$f":"COUNTIF(N8:O30,\"nuit\")","v":0}]
[null,null,null,null,null,null,null,null,null,null,null,null,null,null,null,null,null,null,null,null,{"$f":"SUM(E8:E35)","v":"00:00:00"},null,"TSL",{"$f":"COUNTIF(N8:O30,\"TSL\")","v":0}]
[null,null,null,null,null,null,null,null,null,null,null,null,null,null,null,null,null,null,null,null,null,null,"simple",{"$f":"COUNTIF(N8:O30,\"simple\")","v":0}]
[null,null,null,null,null,null,null,null,null,null,null,null,null,null,null,null,null,null,null,null,null,null,"triangle",{"$f":"COUNTIF(N8:O30,\"triangle\")","v":0}]
[null,null,null,null,null,null,null,null,null,null,null,null,null,null,null,null,null,null,null,null,null,null,"double",{"$f":"COUNTIF(N8:O30,\"double\")","v":0}]
[]
[null,null,null,null,null,null,null,null,null,null,null,null,null,null,null,null,null,null,null,null,"Visa CT fin d'année"]

{"sheet":"LECA","index":10,"n_rows":17,"n_cols":24,"rows_kept":17,"cut":false,"hidden":false,"merged":[[1,1,3,3],[1,4,3,4],[1,5,3,13],[9,20,10,20],[16,20,20,23],[9,21,10,21],[11,20,12,20],[11,21,12,21],[13,20,15,21],[7,20,7,23],[6,7,6,8],[6,9,6,14]]}
[]
[null,"suivi individuel",null,null,2020,{"$f":"RIGHT(CELL(\"nomfichier\",$F$2),LEN(CELL(\"nomfichier\",$F$2))-FIND(\"]\",CELL(\"nomfichier\",$F$2)))","v":"LECA"}]
[]
[]
[]
[]
["Date","N° CRSS","heure départ","heure retour","durée","Lieu","commune","activité",null,"treuillage",null,null,null,null,null,"précisions (matériel utilisé, nouveautés techniques, etc …)","Participants hors équipes SMO (grade, nom, prénom , partenaires)","responsable (CT ou SMO 3)","observations"]
[null,null,null,null,null,null,null,null,null,null,null,null,null,null,null,null,null,null,null,null,"suivi "]
[]
[null,null,null,null,null,null,null,null,null,null,null,null,null,null,null,null,null,null,null,null,"effectuées","cible ops","type","nombre"]
[null,null,null,null,null,null,null,null,null,null,null,null,null,null,null,null,null,null,null,null,null,null,"nuit",{"$f":"COUNTIF(N9:O31,\"nuit\")","v":0}]
[null,null,null,null,null,null,null,null,null,null,null,null,null,null,null,null,null,null,null,null,{"$f":"SUM(E9:E36)","v":"00:00:00"},null,"TSL",{"$f":"COUNTIF(N9:O31,\"TSL\")","v":0}]
[null,null,null,null,null,null,null,null,null,null,null,null,null,null,null,null,null,null,null,null,null,null,"simple",{"$f":"COUNTIF(N9:O31,\"simple\")","v":0}]
[null,null,null,null,null,null,null,null,null,null,null,null,null,null,null,null,null,null,null,null,null,null,"triangle",{"$f":"COUNTIF(N9:O31,\"triangle\")","v":0}]
[null,null,null,null,null,null,null,null,null,null,null,null,null,null,null,null,null,null,null,null,null,null,"double",{"$f":"COUNTIF(N9:O31,\"double\")","v":0}]
[]
[null,null,null,null,null,null,null,null,null,null,null,null,null,null,null,null,null,null,null,null,"Visa CT fin d'année"]

{"sheet":"LENCI","index":11,"n_rows":16,"n_cols":24,"rows_kept":16,"cut":false,"hidden":false,"merged":[[1,1,3,3],[1,4,3,4],[1,5,3,13],[8,20,9,20],[15,20,19,23],[8,21,9,21],[10,20,11,20],[10,21,11,21],[12,20,14,21],[6,7,6,8],[6,20,6,23],[7,20,7,21],[7,22,7,23],[6,9,6,14]]}
[]
[null,"suivi individuel",null,null,2020,{"$f":"RIGHT(CELL(\"nomfichier\",$F$2),LEN(CELL(\"nomfichier\",$F$2))-FIND(\"]\",CELL(\"nomfichier\",$F$2)))","v":"LENCI"}]
[]
[]
[]
[]
["Date","N° CRSS","heure départ","heure retour","durée","Lieu","commune","activité",null,"treuillage",null,null,null,null,null,"précisions (matériel utilisé, nouveautés techniques, etc …)","Participants hors équipes SMO (grade, nom, prénom , partenaires)","responsable (CT ou SMO 3)","observations",null,"suivi "]
[null,null,null,null,null,null,null,null,null,null,null,null,null,null,null,null,null,null,null,null,"heures",null,"treuillages"]
[null,null,null,null,null,null,null,null,null,null,null,null,null,null,null,null,null,null,null,null,"effectuées","cible ops","type","nombre"]
[null,null,null,null,null,null,null,null,null,null,null,null,null,null,null,null,null,null,null,null,null,null,"nuit",{"$f":"COUNTIF(N8:O30,\"nuit\")","v":0}]
[null,null,null,null,null,null,null,null,null,null,null,null,null,null,null,null,null,null,null,null,{"$f":"SUM(E8:E35)","v":"00:00:00"},null,"TSL",{"$f":"COUNTIF(N8:O30,\"TSL\")","v":0}]
[null,null,null,null,null,null,null,null,null,null,null,null,null,null,null,null,null,null,null,null,null,null,"simple",{"$f":"COUNTIF(N8:O30,\"simple\")","v":0}]
[null,null,null,null,null,null,null,null,null,null,null,null,null,null,null,null,null,null,null,null,null,null,"triangle",{"$f":"COUNTIF(N8:O30,\"triangle\")","v":0}]
[null,null,null,null,null,null,null,null,null,null,null,null,null,null,null,null,null,null,null,null,null,null,"double",{"$f":"COUNTIF(N8:O30,\"double\")","v":0}]
[]
[null,null,null,null,null,null,null,null,null,null,null,null,null,null,null,null,null,null,null,null,"Visa CT fin d'année"]

{"sheet":"LEONI","index":12,"n_rows":36,"n_cols":24,"rows_kept":36,"cut":false,"hidden":false,"merged":[[1,1,3,3],[1,4,3,4],[1,5,3,13],[8,20,9,20],[15,20,19,23],[8,21,9,21],[10,20,11,20],[10,21,11,21],[12,20,14,21],[6,7,6,8],[6,20,6,23],[7,20,7,21],[7,22,7,23],[6,9,6,14]]}
[]
[null,"suivi individuel",null,null,2020,{"$f":"RIGHT(CELL(\"nomfichier\",$F$2),LEN(CELL(\"nomfichier\",$F$2))-FIND(\"]\",CELL(\"nomfichier\",$F$2)))","v":"LEONI"}]
[]
[]
[]
[]
["Date","N° CRSS","heure départ","heure retour","durée","Lieu","commune","activité",null,"treuillage",null,null,null,null,null,"précisions (matériel utilisé, nouveautés techniques, etc …)","Participants hors équipes SMO (grade, nom, prénom , partenaires)","responsable (CT ou SMO 3)","observations",null,"suivi "]
[null,null,null,null,null,null,null,null,null,null,null,null,null,null,null,null,null,null,null,null,"heures",null,"treuillages"]
[null,null,null,null,null,null,null,null,null,null,null,null,null,null,null,null,null,null,null,null,"effectuées","cible ops","type","nombre"]
[null,null,null,null,null,null,null,null,null,null,null,null,null,null,null,null,null,null,null,null,null,null,"nuit",{"$f":"COUNTIF(N8:O30,\"nuit\")","v":0}]
[null,null,null,null,null,null,null,null,null,null,null,null,null,null,null,null,null,null,null,null,{"$f":"SUM(E8:E35)","v":"00:00:00"},null,"TSL",{"$f":"COUNTIF(N8:O30,\"TSL\")","v":0}]
[null,null,null,null,null,null,null,null,null,null,null,null,null,null,null,null,null,null,null,null,null,null,"simple",{"$f":"COUNTIF(N8:O30,\"simple\")","v":0}]
[null,null,null,null,null,null,null,null,null,null,null,null,null,null,null,null,null,null,null,null,null,null,"triangle",{"$f":"COUNTIF(N8:O30,\"triangle\")","v":0}]
[null,null,null,null,null,null,null,null,null,null,null,null,null,null,null,null,null,null,null,null,null,null,"double",{"$f":"COUNTIF(N8:O30,\"double\")","v":0}]
[]
[null,null,null,null,null,null,null,null,null,null,null,null,null,null,null,null,null,null,null,null,"Visa CT fin d'année"]
[]
[]
[]
[]
[]
[]
[]
[]
[]
[]
[]
[]
[]
[]
[]
[]
[]
[]
[]
[null,null,null,null,{"$f":"SUM(E8:E35)","v":0}]

{"sheet":"MARCHETTI","index":13,"n_rows":16,"n_cols":24,"rows_kept":16,"cut":false,"hidden":false,"merged":[[1,1,3,3],[1,4,3,4],[1,5,3,13],[8,20,9,20],[15,20,19,23],[8,21,9,21],[10,20,11,20],[10,21,11,21],[12,20,14,21],[6,7,6,8],[6,20,6,23],[7,20,7,21],[7,22,7,23],[6,9,6,14]]}
[]
[null,"suivi individuel",null,null,2020,{"$f":"RIGHT(CELL(\"nomfichier\",$F$2),LEN(CELL(\"nomfichier\",$F$2))-FIND(\"]\",CELL(\"nomfichier\",$F$2)))","v":"MARCHETTI"}]
[]
[]
[]
[]
["Date","N° CRSS","heure départ","heure retour","durée","Lieu","commune","activité",null,"treuillage",null,null,null,null,null,"précisions (matériel utilisé, nouveautés techniques, etc …)","Participants hors équipes SMO (grade, nom, prénom , partenaires)","responsable (CT ou SMO 3)","observations",null,"suivi "]
[null,null,null,null,null,null,null,null,null,null,null,null,null,null,null,null,null,null,null,null,"heures",null,"treuillages"]
[null,null,null,null,null,null,null,null,null,null,null,null,null,null,null,null,null,null,null,null,"effectuées","cible ops","type","nombre"]
[null,null,null,null,null,null,null,null,null,null,null,null,null,null,null,null,null,null,null,null,null,null,"nuit",{"$f":"COUNTIF(N8:O106,\"nuit\")","v":0}]
[null,null,null,null,null,null,null,null,null,null,null,null,null,null,null,null,null,null,null,null,{"$f":"SUM(E8:E35)","v":"00:00:00"},null,"TSL",{"$f":"COUNTIF(N8:O106,\"TSL\")","v":0}]
[null,null,null,null,null,null,null,null,null,null,null,null,null,null,null,null,null,null,null,null,null,null,"simple",{"$f":"COUNTIF(N8:O106,\"simple\")","v":0}]
[null,null,null,null,null,null,null,null,null,null,null,null,null,null,null,null,null,null,null,null,null,null,"triangle",{"$f":"COUNTIF(N8:O106,\"triangle\")","v":0}]
[null,null,null,null,null,null,null,null,null,null,null,null,null,null,null,null,null,null,null,null,null,null,"double",{"$f":"COUNTIF(N8:O106,\"double\")","v":0}]
[]
[null,null,null,null,null,null,null,null,null,null,null,null,null,null,null,null,null,null,null,null,"Visa CT fin d'année"]

{"sheet":"MICHELI","index":14,"n_rows":16,"n_cols":24,"rows_kept":16,"cut":false,"hidden":false,"merged":[[1,1,3,3],[1,4,3,4],[1,5,3,13],[8,20,9,20],[15,20,19,23],[8,21,9,21],[10,20,11,20],[10,21,11,21],[12,20,14,21],[6,7,6,8],[6,20,6,23],[7,20,7,21],[7,22,7,23],[6,9,6,14]]}
[]
[null,"suivi individuel",null,null,2020,{"$f":"RIGHT(CELL(\"nomfichier\",$F$2),LEN(CELL(\"nomfichier\",$F$2))-FIND(\"]\",CELL(\"nomfichier\",$F$2)))","v":"MICHELI"}]
[]
[]
[]
[]
["Date","N° CRSS","heure départ","heure retour","durée","Lieu","commune","activité",null,"treuillage",null,null,null,null,null,"précisions (matériel utilisé, nouveautés techniques, etc …)","Participants hors équipes SMO (grade, nom, prénom , partenaires)","responsable (CT ou SMO 3)","observations",null,"suivi "]
[null,null,null,null,null,null,null,null,null,null,null,null,null,null,null,null,null,null,null,null,"heures",null,"treuillages"]
[null,null,null,null,null,null,null,null,null,null,null,null,null,null,null,null,null,null,null,null,"effectuées","cible ops","type","nombre"]
[null,null,null,null,null,null,null,null,null,null,null,null,null,null,null,null,null,null,null,null,null,null,"nuit",{"$f":"COUNTIF(N8:O106,\"nuit\")","v":0}]
[null,null,null,null,null,null,null,null,null,null,null,null,null,null,null,null,null,null,null,null,{"$f":"SUM(E8:E35)","v":"00:00:00"},null,"TSL",{"$f":"COUNTIF(N8:O106,\"TSL\")","v":0}]
[null,null,null,null,null,null,null,null,null,null,null,null,null,null,null,null,null,null,null,null,null,null,"simple",{"$f":"COUNTIF(N8:O106,\"simple\")","v":0}]
[null,null,null,null,null,null,null,null,null,null,null,null,null,null,null,null,null,null,null,null,null,null,"triangle",{"$f":"COUNTIF(N8:O106,\"triangle\")","v":0}]
[null,null,null,null,null,null,null,null,null,null,null,null,null,null,null,null,null,null,null,null,null,null,"double",{"$f":"COUNTIF(N8:O106,\"double\")","v":0}]
[]
[null,null,null,null,null,null,null,null,null,null,null,null,null,null,null,null,null,null,null,null,"Visa CT fin d'année"]

{"sheet":"MODOLONI","index":15,"n_rows":16,"n_cols":24,"rows_kept":16,"cut":false,"hidden":false,"merged":[[1,1,3,3],[1,4,3,4],[1,5,3,13],[8,20,9,20],[15,20,19,23],[8,21,9,21],[10,20,11,20],[10,21,11,21],[12,20,14,21],[6,7,6,8],[6,20,6,23],[7,20,7,21],[7,22,7,23],[6,9,6,14]]}
[]
[null,"suivi individuel",null,null,2020,{"$f":"RIGHT(CELL(\"nomfichier\",$F$2),LEN(CELL(\"nomfichier\",$F$2))-FIND(\"]\",CELL(\"nomfichier\",$F$2)))","v":"MODOLONI"}]
[]
[]
[]
[]
["Date","N° CRSS","heure départ","heure retour","durée","Lieu","commune","activité",null,"treuillage",null,null,null,null,null,"précisions (matériel utilisé, nouveautés techniques, etc …)","Participants hors équipes SMO (grade, nom, prénom , partenaires)","responsable (CT ou SMO 3)","observations",null,"suivi "]
[null,null,null,null,null,null,null,null,null,null,null,null,null,null,null,null,null,null,null,null,"heures",null,"treuillages"]
[null,null,null,null,null,null,null,null,null,null,null,null,null,null,null,null,null,null,null,null,"effectuées","cible ops","type","nombre"]
[null,null,null,null,null,null,null,null,null,null,null,null,null,null,null,null,null,null,null,null,null,null,"nuit",{"$f":"COUNTIF(N8:O30,\"nuit\")","v":0}]
[null,null,null,null,null,null,null,null,null,null,null,null,null,null,null,null,null,null,null,null,{"$f":"SUM(E8:E35)","v":"00:00:00"},null,"TSL",{"$f":"COUNTIF(N8:O30,\"TSL\")","v":0}]
[null,null,null,null,null,null,null,null,null,null,null,null,null,null,null,null,null,null,null,null,null,null,"simple",{"$f":"COUNTIF(N8:O30,\"simple\")","v":0}]
[null,null,null,null,null,null,null,null,null,null,null,null,null,null,null,null,null,null,null,null,null,null,"triangle",{"$f":"COUNTIF(N8:O30,\"triangle\")","v":0}]
[null,null,null,null,null,null,null,null,null,null,null,null,null,null,null,null,null,null,null,null,null,null,"double",{"$f":"COUNTIF(N8:O30,\"double\")","v":0}]
[]
[null,null,null,null,null,null,null,null,null,null,null,null,null,null,null,null,null,null,null,null,"Visa CT fin d'année"]

{"sheet":"NESA","index":16,"n_rows":16,"n_cols":24,"rows_kept":16,"cut":false,"hidden":false,"merged":[[1,1,3,3],[1,4,3,4],[1,5,3,13],[8,20,9,20],[15,20,19,23],[8,21,9,21],[10,20,11,20],[10,21,11,21],[12,20,14,21],[6,7,6,8],[6,20,6,23],[7,20,7,21],[7,22,7,23],[6,9,6,14]]}
[]
[null,"suivi individuel",null,null,2020,{"$f":"RIGHT(CELL(\"nomfichier\",$F$2),LEN(CELL(\"nomfichier\",$F$2))-FIND(\"]\",CELL(\"nomfichier\",$F$2)))","v":"NESA"}]
[]
[]
[]
[]
["Date","N° CRSS","heure départ","heure retour","durée","Lieu","commune","activité",null,"treuillage",null,null,null,null,null,"précisions (matériel utilisé, nouveautés techniques, etc …)","Participants hors équipes SMO (grade, nom, prénom , partenaires)","responsable (CT ou SMO 3)","observations",null,"suivi "]
[null,null,null,null,null,null,null,null,null,null,null,null,null,null,null,null,null,null,null,null,"heures",null,"treuillages"]
[null,null,null,null,null,null,null,null,null,null,null,null,null,null,null,null,null,null,null,null,"effectuées","cible ops","type","nombre"]
[null,null,null,null,null,null,null,null,null,null,null,null,null,null,null,null,null,null,null,null,null,null,"nuit",{"$f":"COUNTIF(N8:O106,\"nuit\")","v":0}]
[null,null,null,null,null,null,null,null,null,null,null,null,null,null,null,null,null,null,null,null,{"$f":"SUM(E8:E35)","v":"00:00:00"},null,"TSL",{"$f":"COUNTIF(N8:O106,\"TSL\")","v":0}]
[null,null,null,null,null,null,null,null,null,null,null,null,null,null,null,null,null,null,null,null,null,null,"simple",{"$f":"COUNTIF(N8:O106,\"simple\")","v":0}]
[null,null,null,null,null,null,null,null,null,null,null,null,null,null,null,null,null,null,null,null,null,null,"triangle",{"$f":"COUNTIF(N8:O106,\"triangle\")","v":0}]
[null,null,null,null,null,null,null,null,null,null,null,null,null,null,null,null,null,null,null,null,null,null,"double",{"$f":"COUNTIF(N8:O106,\"double\")","v":0}]
[]
[null,null,null,null,null,null,null,null,null,null,null,null,null,null,null,null,null,null,null,null,"Visa CT fin d'année"]

{"sheet":"ORTOLANO","index":17,"n_rows":16,"n_cols":24,"rows_kept":16,"cut":false,"hidden":false,"merged":[[1,1,3,3],[1,4,3,4],[1,5,3,13],[8,20,9,20],[15,20,19,23],[8,21,9,21],[10,20,11,20],[10,21,11,21],[12,20,14,21],[6,7,6,8],[6,20,6,23],[7,20,7,21],[7,22,7,23],[6,9,6,14]]}
[]
[null,"suivi individuel",null,null,2020,{"$f":"RIGHT(CELL(\"nomfichier\",$F$2),LEN(CELL(\"nomfichier\",$F$2))-FIND(\"]\",CELL(\"nomfichier\",$F$2)))","v":"ORTOLANO"}]
[]
[]
[]
[]
["Date","N° CRSS","heure départ","heure retour","durée","Lieu","commune","activité",null,"treuillage",null,null,null,null,null,"précisions (matériel utilisé, nouveautés techniques, etc …)","Participants hors équipes SMO (grade, nom, prénom , partenaires)","responsable (CT ou SMO 3)","observations",null,"suivi "]
[" 08/11/2020",4444,"02:00:00","06:00:00","04:00:00",null,null,"TREILLAGE","TREILLAGE","SIMPLE","SIMPLE","DOUBLE","DOUBLE","TSL","TSL","Matériel","Grade","ALBERT ","ras",null,"heures",null,"treuillages"]
[null,null,null,null,null,null,null,null,null,null,null,null,null,null,null,null,null,null,null,null,"effectuées","cible ops","type","nombre"]
[null,null,null,null,null,null,null,null,null,null,null,null,null,null,null,null,null,null,null,null,null,null,"nuit",{"$f":"COUNTIF(N8:O30,\"nuit\")","v":0}]
[null,null,null,null,null,null,null,null,null,null,null,null,null,null,null,null,null,null,null,null,{"$f":"SUM(E8:E35)","v":"04:00:00"},null,"TSL",{"$f":"COUNTIF(N8:O30,\"TSL\")","v":2}]
[null,null,null,null,null,null,null,null,null,null,null,null,null,null,null,null,null,null,null,null,null,null,"simple",{"$f":"COUNTIF(N8:O30,\"simple\")","v":0}]
[null,null,null,null,null,null,null,null,null,null,null,null,null,null,null,null,null,null,null,null,null,null,"triangle",{"$f":"COUNTIF(N8:O30,\"triangle\")","v":0}]
[null,null,null,null,null,null,null,null,null,null,null,null,null,null,null,null,null,null,null,null,null,null,"double",{"$f":"COUNTIF(N8:O30,\"double\")","v":0}]
[]
[null,null,null,null,null,null,null,null,null,null,null,null,null,null,null,null,null,null,null,null,"Visa CT fin d'année"]

{"sheet":"PEREZ","index":18,"n_rows":16,"n_cols":24,"rows_kept":16,"cut":false,"hidden":false,"merged":[[1,1,3,3],[1,4,3,4],[1,5,3,13],[8,20,9,20],[15,20,19,23],[8,21,9,21],[10,20,11,20],[10,21,11,21],[12,20,14,21],[6,7,6,8],[6,20,6,23],[7,20,7,21],[7,22,7,23],[6,9,6,14]]}
[]
[null,"suivi individuel",null,null,2020,{"$f":"RIGHT(CELL(\"nomfichier\",$F$2),LEN(CELL(\"nomfichier\",$F$2))-FIND(\"]\",CELL(\"nomfichier\",$F$2)))","v":"PEREZ"}]
[]
[]
[]
[]
["Date","N° CRSS","heure départ","heure retour","durée","Lieu","commune","activité",null,"treuillage",null,null,null,null,null,"précisions (matériel utilisé, nouveautés techniques, etc …)","Participants hors équipes SMO (grade, nom, prénom , partenaires)","responsable (CT ou SMO 3)","observations",null,"suivi "]
[" 08/11/2020",4444,"02:00:00","06:00:00","04:00:00",null,null,"TREILLAGE","TREILLAGE","SIMPLE","SIMPLE","DOUBLE","DOUBLE","TSL","TSL","Matériel","Grade","ALBERT ","ras",null,"heures",null,"treuillages"]
[null,null,null,null,null,null,null,null,null,null,null,null,null,null,null,null,null,null,null,null,"effectuées","cible ops","type","nombre"]
[null,null,null,null,null,null,null,null,null,null,null,null,null,null,null,null,null,null,null,null,null,null,"nuit",{"$f":"COUNTIF(N8:O30,\"nuit\")","v":0}]
[null,null,null,null,null,null,null,null,null,null,null,null,null,null,null,null,null,null,null,null,{"$f":"SUM(E8:E35)","v":"04:00:00"},null,"TSL",{"$f":"COUNTIF(N8:O30,\"TSL\")","v":2}]
[null,null,null,null,null,null,null,null,null,null,null,null,null,null,null,null,null,null,null,null,null,null,"simple",{"$f":"COUNTIF(N8:O30,\"simple\")","v":0}]
[null,null,null,null,null,null,null,null,null,null,null,null,null,null,null,null,null,null,null,null,null,null,"triangle",{"$f":"COUNTIF(N8:O30,\"triangle\")","v":0}]
[null,null,null,null,null,null,null,null,null,null,null,null,null,null,null,null,null,null,null,null,null,null,"double",{"$f":"COUNTIF(N8:O30,\"double\")","v":0}]
[]
[null,null,null,null,null,null,null,null,null,null,null,null,null,null,null,null,null,null,null,null,"Visa CT fin d'année"]

{"sheet":"SCAGLIA","index":19,"n_rows":16,"n_cols":24,"rows_kept":16,"cut":false,"hidden":false,"merged":[[1,1,3,3],[1,4,3,4],[1,5,3,13],[8,20,9,20],[15,20,19,23],[8,21,9,21],[10,20,11,20],[10,21,11,21],[12,20,14,21],[6,7,6,8],[6,20,6,23],[7,20,7,21],[7,22,7,23],[6,9,6,14]]}
[]
[null,"suivi individuel",null,null,2020,{"$f":"RIGHT(CELL(\"nomfichier\",$F$2),LEN(CELL(\"nomfichier\",$F$2))-FIND(\"]\",CELL(\"nomfichier\",$F$2)))","v":"SCAGLIA"}]
[]
[]
[]
[]
["Date","N° CRSS","heure départ","heure retour","durée","Lieu","commune","activité",null,"treuillage",null,null,null,null,null,"précisions (matériel utilisé, nouveautés techniques, etc …)","Participants hors équipes SMO (grade, nom, prénom , partenaires)","responsable (CT ou SMO 3)","observations",null,"suivi "]
[" 08/11/2020",4444,"02:00:00","06:00:00","04:00:00",null,null,"TREILLAGE","TREILLAGE","SIMPLE","SIMPLE","DOUBLE","DOUBLE","TSL","TSL","Matériel","Grade","ALBERT ","ras",null,"heures",null,"treuillages"]
[null,null,null,null,null,null,null,null,null,null,null,null,null,null,null,null,null,null,null,null,"effectuées","cible ops","type","nombre"]
[null,null,null,null,null,null,null,null,null,null,null,null,null,null,null,null,null,null,null,null,null,null,"nuit",{"$f":"COUNTIF(N8:O30,\"nuit\")","v":0}]
[null,null,null,null,null,null,null,null,null,null,null,null,null,null,null,null,null,null,null,null,{"$f":"SUM(E8:E35)","v":"04:00:00"},null,"TSL",{"$f":"COUNTIF(N8:O30,\"TSL\")","v":2}]
[null,null,null,null,null,null,null,null,null,null,null,null,null,null,null,null,null,null,null,null,null,null,"simple",{"$f":"COUNTIF(N8:O30,\"simple\")","v":0}]
[null,null,null,null,null,null,null,null,null,null,null,null,null,null,null,null,null,null,null,null,null,null,"triangle",{"$f":"COUNTIF(N8:O30,\"triangle\")","v":0}]
[null,null,null,null,null,null,null,null,null,null,null,null,null,null,null,null,null,null,null,null,null,null,"double",{"$f":"COUNTIF(N8:O30,\"double\")","v":0}]
[]
[null,null,null,null,null,null,null,null,null,null,null,null,null,null,null,null,null,null,null,null,"Visa CT fin d'année"]

{"sheet":"SCIARETTI","index":20,"n_rows":16,"n_cols":24,"rows_kept":16,"cut":false,"hidden":false,"merged":[[1,1,3,3],[1,4,3,4],[1,5,3,13],[8,20,9,20],[15,20,19,23],[8,21,9,21],[10,20,11,20],[10,21,11,21],[12,20,14,21],[6,7,6,8],[6,20,6,23],[7,20,7,21],[7,22,7,23],[6,9,6,14]]}
[]
[null,"suivi individuel",null,null,2020,{"$f":"RIGHT(CELL(\"nomfichier\",$F$2),LEN(CELL(\"nomfichier\",$F$2))-FIND(\"]\",CELL(\"nomfichier\",$F$2)))","v":"SCIARETTI"}]
[]
[]
[]
[]
["Date","N° CRSS","heure départ","heure retour","durée","Lieu","commune","activité",null,"treuillage",null,null,null,null,null,"précisions (matériel utilisé, nouveautés techniques, etc …)","Participants hors équipes SMO (grade, nom, prénom , partenaires)","responsable (CT ou SMO 3)","observations",null,"suivi "]
[" 08/11/2020",4444,"02:00:00","06:00:00","04:00:00",null,null,"TREILLAGE","TREILLAGE","SIMPLE","SIMPLE","DOUBLE","DOUBLE","TSL","TSL","Matériel","Grade","ALBERT ","ras",null,"heures",null,"treuillages"]
[null,null,null,null,null,null,null,null,null,null,null,null,null,null,null,null,null,null,null,null,"effectuées","cible ops","type","nombre"]
[null,null,null,null,null,null,null,null,null,null,null,null,null,null,null,null,null,null,null,null,null,null,"nuit",{"$f":"COUNTIF(N8:O30,\"nuit\")","v":0}]
[null,null,null,null,null,null,null,null,null,null,null,null,null,null,null,null,null,null,null,null,{"$f":"SUM(E8:E35)","v":"04:00:00"},null,"TSL",{"$f":"COUNTIF(N8:O30,\"TSL\")","v":2}]
[null,null,null,null,null,null,null,null,null,null,null,null,null,null,null,null,null,null,null,null,null,null,"simple",{"$f":"COUNTIF(N8:O30,\"simple\")","v":0}]
[null,null,null,null,null,null,null,null,null,null,null,null,null,null,null,null,null,null,null,null,null,null,"triangle",{"$f":"COUNTIF(N8:O30,\"triangle\")","v":0}]
[null,null,null,null,null,null,null,null,null,null,null,null,null,null,null,null,null,null,null,null,null,null,"double",{"$f":"COUNTIF(N8:O30,\"double\")","v":0}]
[]
[null,null,null,null,null,null,null,null,null,null,null,null,null,null,null,null,null,null,null,null,"Visa CT fin d'année"]

{"sheet":"VAN KALCK","index":21,"n_rows":16,"n_cols":24,"rows_kept":16,"cut":false,"hidden":false,"merged":[[1,1,3,3],[1,4,3,4],[1,5,3,13],[8,20,9,20],[15,20,19,23],[8,21,9,21],[10,20,11,20],[10,21,11,21],[12,20,14,21],[6,7,6,8],[6,20,6,23],[7,20,7,21],[7,22,7,23],[6,9,6,14]]}
[]
[null,"suivi individuel",null,null,2020,{"$f":"RIGHT(CELL(\"nomfichier\",$F$2),LEN(CELL(\"nomfichier\",$F$2))-FIND(\"]\",CELL(\"nomfichier\",$F$2)))","v":"VAN KALCK"}]
[]
[]
[]
[]
["Date","N° CRSS","heure départ","heure retour","durée","Lieu","commune","activité",null,"treuillage",null,null,null,null,null,"précisions (matériel utilisé, nouveautés techniques, etc …)","Participants hors équipes SMO (grade, nom, prénom , partenaires)","responsable (CT ou SMO 3)","observations",null,"suivi "]
[" 08/11/2020",4444,"02:00:00","06:00:00","04:00:00",null,null,"TREILLAGE","TREILLAGE","SIMPLE","SIMPLE","DOUBLE","DOUBLE","TSL","TSL","Matériel","Grade","ALBERT ","ras",null,"heures",null,"treuillages"]
[null,null,null,null,null,null,null,null,null,null,null,null,null,null,null,null,null,null,null,null,"effectuées","cible ops","type","nombre"]
[null,null,null,null,null,null,null,null,null,null,null,null,null,null,null,null,null,null,null,null,null,null,"nuit",{"$f":"COUNTIF(N8:O30,\"nuit\")","v":0}]
[null,null,null,null,null,null,null,null,null,null,null,null,null,null,null,null,null,null,null,null,{"$f":"SUM(E8:E35)","v":0.16666666666666666},null,"TSL",{"$f":"COUNTIF(N8:O30,\"TSL\")","v":2}]
[null,null,null,null,null,null,null,null,null,null,null,null,null,null,null,null,null,null,null,null,null,null,"simple",{"$f":"COUNTIF(N8:O30,\"simple\")","v":0}]
[null,null,null,null,null,null,null,null,null,null,null,null,null,null,null,null,null,null,null,null,null,null,"triangle",{"$f":"COUNTIF(N8:O30,\"triangle\")","v":0}]
[null,null,null,null,null,null,null,null,null,null,null,null,null,null,null,null,null,null,null,null,null,null,"double",{"$f":"COUNTIF(N8:O30,\"double\")","v":0}]
[]
[null,null,null,null,null,null,null,null,null,null,null,null,null,null,null,null,null,null,null,null,"Visa CT fin d'année"]

{"sheet":"VECCHIOLI","index":22,"n_rows":16,"n_cols":24,"rows_kept":16,"cut":false,"hidden":false,"merged":[[1,1,3,3],[1,4,3,4],[1,5,3,13],[8,20,9,20],[15,20,19,23],[8,21,9,21],[10,20,11,20],[10,21,11,21],[12,20,14,21],[6,7,6,8],[6,20,6,23],[7,20,7,21],[7,22,7,23],[6,9,6,14]]}
[]
[null,"suivi individuel",null,null,2020,{"$f":"RIGHT(CELL(\"nomfichier\",$F$2),LEN(CELL(\"nomfichier\",$F$2))-FIND(\"]\",CELL(\"nomfichier\",$F$2)))","v":"VECCHIOLI"}]
[]
[]
[]
[]
["Date","N° CRSS","heure départ","heure retour","durée","Lieu","commune","activité",null,"treuillage",null,null,null,null,null,"précisions (matériel utilisé, nouveautés techniques, etc …)","Participants hors équipes SMO (grade, nom, prénom , partenaires)","responsable (CT ou SMO 3)","observations",null,"suivi "]
[null,null,null,null,null,null,null,null,null,null,null,null,null,null,null,null,null,null,null,null,"heures",null,"treuillages"]
[null,null,null,null,null,null,null,null,null,null,null,null,null,null,null,null,null,null,null,null,"effectuées","cible ops","type","nombre"]
[null,null,null,null,null,null,null,null,null,null,null,null,null,null,null,null,null,null,null,null,null,null,"nuit",{"$f":"COUNTIF(N8:O30,\"nuit\")","v":0}]
[null,null,null,null,null,null,null,null,null,null,null,null,null,null,null,null,null,null,null,null,{"$f":"SUM(E8:E35)","v":"00:00:00"},null,"TSL",{"$f":"COUNTIF(N8:O30,\"TSL\")","v":0}]
[null,null,null,null,null,null,null,null,null,null,null,null,null,null,null,null,null,null,null,null,null,null,"simple",{"$f":"COUNTIF(N8:O30,\"simple\")","v":0}]
[null,null,null,null,null,null,null,null,null,null,null,null,null,null,null,null,null,null,null,null,null,null,"triangle",{"$f":"COUNTIF(N8:O30,\"triangle\")","v":0}]
[null,null,null,null,null,null,null,null,null,null,null,null,null,null,null,null,null,null,null,null,null,null,"double",{"$f":"COUNTIF(N8:O30,\"double\")","v":0}]
[]
[null,null,null,null,null,null,null,null,null,null,null,null,null,null,null,null,null,null,null,null,"Visa CT fin d'année"]